bitfinex/quotes_SOLUSD_20220227
["timestamp","ask_amount","ask_price","bid_price","bid_amount"]
[1645933560445,14.69338242,87.189,87.071,26.44977969]
[1645933560645,1.48112581,87.188,87.072,26.44977969]
[1645933561048,4.59,87.187,87.072,26.44977969]
[1645933563346,4.59,87.187,87.073,114.4]
[1645933563549,4.59,87.187,87.074,2.97643719]
[1645933563745,1.48112581,87.188,87.075,114.4]
[1645933563946,1.48112581,87.188,87.09,16.54]
[1645933564150,1.48112581,87.188,87.091,48.3035]
[1645933564347,16.54,87.19,87.091,48.3035]
[1645933564548,1.59183863,87.189,87.091,48.3035]
[1645933564767,1.75561966,87.197,87.091,48.3035]
[1645933565148,4.59,87.196,87.091,48.3035]
[1645933565548,25.36047124,87.196,87.091,48.3035]
[1645933565750,22.3423958,87.195,87.091,48.3035]
[1645933565949,6.32805667,87.194,87.091,48.3035]
[1645933566248,22.40737316,87.194,87.091,48.3035]
[1645933566449,1.86262446,87.193,87.091,48.3035]
[1645933568754,6.41180488,87.198,87.091,48.3035]
[1645933569351,1.82180488,87.198,87.091,48.3035]
[1645933570956,2.74678921,87.197,87.091,48.3035]
[1645933571155,2.74678921,87.197,87.092,3.12324498]
[1645933571359,2.74678921,87.197,87.092,117.52324498]
[1645933571658,2.74678921,87.211,87.093,34.73066346]
[1645933571857,48.19365199,87.212,87.094,116.7444549]
[1645933572157,48.19365199,87.212,87.095,2.46141578]
[1645933572378,48.19365199,87.212,87.097,2.38861052]
[1645933572578,48.19365199,87.212,87.111,114.4]
[1645933572780,48.19365199,87.212,87.11,16.54]
[1645933572781,48.19365199,87.212,87.114,2.90314626]
[1645933573179,48.19365199,87.212,87.115,2.74678921]
[1645933573781,48.19365199,87.212,87.115,29.1965689]
[1645933573980,48.19365199,87.212,87.117,2.66036502]
[1645933574185,48.19365199,87.212,87.13,16.54]
[1645933574381,48.19365199,87.212,87.131,27.28617954]
[1645933576885,23.835,87.203,87.131,27.28617954]
[1645933581595,23.835,87.203,87.131,24.7156]
[1645933584797,48.19365199,87.212,87.132,119.63368332]
[1645933584997,48.19365199,87.212,87.133,2.64031718]
[1645933585195,24.3446,87.22,87.134,114.4]
[1645933585395,24.3446,87.22,87.135,2.28792059]
[1645933585595,24.3446,87.22,87.151,114.4]
[1645933585797,24.3446,87.22,87.16,16.54]
[1645933586199,58.87992692,87.219,87.16,16.54]
[1645933589303,24.3446,87.22,87.16,16.54]
[1645933590403,52.12255386,87.219,87.16,16.54]
[1645933594107,52.12255386,87.219,87.161,114.4]
[1645933594307,52.12255386,87.219,87.163,114.4]
[1645933594506,52.12255386,87.219,87.162,24.5335]
[1645933604920,24.3446,87.22,87.162,24.5335]
[1645933608642,1.55585815,87.219,87.162,24.5335]
[1645933609245,1.55585815,87.219,87.136,15.7969858]
[1645933609451,6.85585815,87.219,87.111,24.7025]
[1645933609645,68.18520616,87.218,87.102,24.5108]
[1645933609845,1.84880872,87.217,87.102,24.5108]
[1645933610047,118.989,87.216,87.08,16.54]
[1645933610249,1.44237279,87.215,87.081,24.5525]
[1645933610446,118.989,87.214,87.081,24.5525]
[1645933610747,1.61622703,87.199,87.081,24.5525]
[1645933610952,1.46441866,87.197,87.081,24.5525]
[1645933611145,56.1379392,87.195,87.081,24.5525]
[1645933611346,16.54,87.19,87.081,24.5525]
[1645933611547,1.58948102,87.188,87.081,24.5525]
[1645933611947,24.57521722,87.187,87.081,24.5525]
[1645933612148,1.4417533,87.185,87.081,24.5525]
[1645933612348,4.59,87.184,87.081,24.5525]
[1645933612647,19.98521722,87.184,87.081,24.5525]
[1645933612846,50.32082571,87.183,87.081,24.5525]
[1645933613048,0.0648886,87.182,87.081,24.5525]
[1645933613248,4.59,87.181,87.082,2.49053174]
[1645933613450,24.57521722,87.181,87.082,2.49053174]
[1645933613647,19.98521722,87.18,87.082,2.49053174]
[1645933613848,4.59,87.179,87.082,2.49053174]
[1645933614249,19.98521722,87.178,87.082,2.49053174]
[1645933614449,22.73200643,87.178,87.082,2.49053174]
[1645933614649,2.74678921,87.177,87.082,2.49053174]
[1645933615053,19.98521722,87.176,87.082,2.49053174]
[1645933615349,24.0091,87.175,87.082,2.49053174]
[1645933615751,46.74110643,87.175,87.082,2.49053174]
[1645933616353,26.75588921,87.175,87.082,116.89053174]
[1645933616552,26.75588921,87.175,87.083,2.74714918]
[1645933616752,24.0091,87.175,87.084,114.4]
[1645933616952,24.0091,87.175,87.085,2.3519397]
[1645933617252,56.1379392,87.195,87.086,114.4]
[1645933617552,24.0849,87.194,87.101,114.4]
[1645933617753,24.0849,87.194,87.103,114.4]
[1645933618054,24.0849,87.194,87.104,2.73965812]
[1645933622658,16.8284,87.193,87.104,2.73965812]
[1645933629266,25.74560849,87.19,87.104,2.73965812]
[1645933629667,16.8284,87.193,87.104,2.73965812]
[1645933636090,25.74560849,87.188,87.104,2.73965812]
[1645933636291,4.589,87.187,87.104,2.73965812]
[1645933636493,25.45853511,87.187,87.104,2.73965812]
[1645933636693,43.86835439,87.186,87.104,2.73965812]
[1645933636895,4.59,87.185,87.104,2.73965812]
[1645933637092,51.2051436,87.185,87.104,2.73965812]
[1645933637294,18.1227459,87.184,87.104,2.73965812]
[1645933637494,4.59,87.183,87.104,2.73965812]
[1645933637694,33.0823977,87.183,87.104,2.73965812]
[1645933637994,16.54,87.18,87.071,23.1331]
[1645933638193,6.18822885,87.179,87.072,2.95639]
[1645933638393,1.72770218,87.178,87.072,2.95639]
[1645933638592,4.591,87.177,87.072,2.95639]
[1645933638793,6.45507536,87.177,87.072,2.95639]
[1645933638995,25.74560849,87.176,87.072,2.95639]
[1645933639193,4.591,87.175,87.072,2.95639]
[1645933639393,1.66870748,87.169,87.072,2.95639]
[1645933639693,55.64655639,87.167,87.072,2.95639]
[1645933639894,28.4863,87.166,87.072,2.95639]
[1645933640096,49.35583511,87.166,87.072,2.95639]
[1645933640294,2.74678921,87.165,87.072,2.95639]
[1645933640496,4.591,87.164,87.072,2.95639]
[1645933640695,22.7137459,87.164,87.072,2.95639]
[1645933640897,2.74678921,87.163,87.072,2.95639]
[1645933641096,2.74678921,87.163,87.074,2.70342145]
[1645933642598,28.4923977,87.163,87.074,2.70342145]
[1645933644799,2.74678921,87.163,87.074,2.70342145]
[1645933646604,28.4923977,87.163,87.074,2.70342145]
[1645933647001,2.74678921,87.162,87.074,2.70342145]
[1645933647401,28.4923977,87.162,87.074,2.70342145]
[1645933653806,2.74678921,87.161,87.074,2.70342145]
[1645933658610,25.74560849,87.16,87.074,2.70342145]
[1645933659010,28.4923977,87.16,87.074,2.70342145]
[1645933659423,25.74560849,87.159,87.074,2.70342145]
[1645933661412,2.74678921,87.16,87.074,2.70342145]
[1645933661612,23.8953,87.166,87.076,114.4]
[1645933661812,23.8953,87.166,87.09,16.54]
[1645933662012,23.8953,87.166,87.091,26.77481295]
[1645933662213,23.8953,87.166,87.092,2.76901864]
[1645933665019,23.8953,87.166,87.093,2.74678921]
[1645933665516,55.64655639,87.167,87.093,2.74678921]
[1645933665715,24.9668,87.189,87.095,114.4]
[1645933665917,24.9668,87.189,87.096,2.57645508]
[1645933666116,24.9668,87.189,87.111,114.4]
[1645933666317,24.9668,87.189,87.112,26.40323868]
[1645933666517,24.9668,87.189,87.113,3.10186002]
[1645933666716,57.94165073,87.188,87.113,3.10186002]
[1645933667522,23.1531,87.187,87.113,3.10186002]
[1645933681230,2.74678921,87.186,87.113,3.10186002]
[1645933681431,28.4923977,87.186,87.113,3.10186002]
[1645933681829,28.4923977,87.185,87.113,3.10186002]
[1645933685431,23.1531,87.187,87.113,3.10186002]
[1645933686032,23.1531,87.187,87.113,10.88186002]
[1645933686435,23.1531,87.187,87.114,114.4]
[1645933686633,2.74678921,87.206,87.122,2.7010468]
[1645933686833,17.1762,87.211,87.125,2.70019096]
[1645933687034,2.74678921,87.217,87.125,2.70019096]
[1645933687438,56.33664141,87.216,87.126,2.74678921]
[1645933687635,56.33664141,87.216,87.13,16.54]
[1645933687837,59.08343062,87.216,87.131,2.39212011]
[1645933688138,59.08343062,87.216,87.131,10.91890932]
[1645933688635,59.08343062,87.216,87.131,8.17212011]
[1645933688835,4.588,87.215,87.131,5.78]
[1645933689236,2.74678921,87.214,87.131,5.78]
[1645933689435,4.588,87.213,87.124,2.80336876]
[1645933689836,2.74678921,87.212,87.124,2.80336876]
[1645933690038,4.588,87.211,87.124,2.80336876]
[1645933690236,2.74678921,87.212,87.124,2.80336876]
[1645933690536,2.74678921,87.21,87.124,2.80336876]
[1645933690739,24.2382,87.209,87.124,2.80336876]
[1645933691137,2.74678921,87.208,87.124,2.80336876]
[1645933692940,29.26706437,87.208,87.124,2.80336876]
[1645933693343,2.74678921,87.207,87.124,2.80336876]
[1645933693541,4.588,87.206,87.124,2.80336876]
[1645933694041,2.74678921,87.205,87.124,2.80336876]
[1645933696061,24.67906437,87.205,87.124,2.80336876]
[1645933696262,4.589,87.204,87.124,2.80336876]
[1645933696464,7.33578921,87.204,87.124,2.80336876]
[1645933696662,24.67906437,87.203,87.124,2.80336876]
[1645933696862,16.54,87.2,87.124,2.80336876]
[1645933697264,24.0794,87.199,87.124,2.80336876]
[1645933697463,26.82618921,87.199,87.124,2.80336876]
[1645933697662,2.74678921,87.198,87.124,2.80336876]
[1645933701969,24.67906437,87.198,87.124,2.80336876]
[1645933702371,2.74678921,87.197,87.124,2.80336876]
[1645933709976,24.67906437,87.197,87.124,2.80336876]
[1645933710377,2.74678921,87.196,87.124,2.80336876]
[1645933712179,24.67906437,87.196,87.124,2.80336876]
[1645933712577,2.74678921,87.195,87.124,2.80336876]
[1645933712977,21.93227516,87.194,87.124,2.80336876]
[1645933713378,2.74678921,87.193,87.124,2.80336876]
[1645933713781,19.90569561,87.192,87.124,2.80336876]
[1645933713978,16.54,87.18,87.062,2.5740195]
[1645933714178,106.1647143,87.179,87.062,49.5845195]
[1645933714379,114.4,87.178,87.063,2.83663039]
[1645933714580,6.00572144,87.177,87.063,2.83663039]
[1645933714779,20.25564092,87.177,87.063,2.83663039]
[1645933714979,14.24991948,87.176,87.063,2.83663039]
[1645933715179,38.92898385,87.176,87.063,2.83663039]
[1645933715478,2.74678921,87.175,87.063,2.83663039]
[1645933715683,16.54,87.17,87.063,2.83663039]
[1645933715882,24.7781,87.169,87.063,2.83663039]
[1645933716083,41.77480869,87.169,87.063,2.83663039]
[1645933716284,39.02801948,87.169,87.063,2.83663039]
[1645933716483,2.74678921,87.168,87.063,2.83663039]
[1645933716882,4.591,87.167,87.063,2.83663039]
[1645933717283,2.74678921,87.166,87.063,2.83663039]
[1645933717483,4.591,87.165,87.063,2.83663039]
[1645933717884,2.74678921,87.164,87.063,2.83663039]
[1645933718085,4.591,87.163,87.063,2.83663039]
[1645933718484,2.74678921,87.162,87.063,2.83663039]
[1645933718684,16.54,87.16,87.063,117.23663039]
[1645933718887,16.54,87.16,87.064,2.91354552]
[1645933719084,2.74678921,87.159,87.064,2.91354552]
[1645933719484,24.9244,87.158,87.064,2.91354552]
[1645933719886,2.74678921,87.157,87.064,2.91354552]
[1645933729402,2.74678921,87.157,87.065,27.31455532]
[1645933729603,4.591,87.184,87.065,27.31455532]
[1645933729604,2.74678921,87.177,87.066,121.70835509]
[1645933729824,23.8839,87.175,87.07,16.54]
[1645933730024,23.8839,87.175,87.071,150.74200045]
[1645933730226,23.8839,87.175,87.072,2.34133485]
[1645933730424,23.8839,87.175,87.073,150.74200045]
[1645933730626,23.8839,87.175,87.074,2.48114201]
[1645933730824,23.8839,87.175,87.075,114.4]
[1645933731026,23.8839,87.175,87.081,114.4]
[1645933731225,23.8839,87.175,87.082,3.01497989]
[1645933731424,23.8839,87.175,87.084,3.1185547]
[1645933731625,23.8839,87.175,87.086,116.88581581]
[1645933731827,23.8839,87.175,87.087,3.0002094]
[1645933756755,23.8839,87.175,87.088,31.77101414]
[1645933756956,23.8839,87.175,87.089,2.7575567]
[1645933769795,2.74678921,87.174,87.089,2.7575567]
[1645933781906,23.8839,87.175,87.089,2.7575567]
[1645933783330,23.8839,87.175,87.09,31.80937316]
[1645933783530,23.8839,87.175,87.091,2.48904832]
[1645933784331,23.8839,87.175,87.086,2.43956551]
[1645933784930,23.8839,87.175,87.087,31.80864235]
[1645933785132,23.8839,87.175,87.088,2.35198761]
[1645933785731,23.8839,87.175,87.089,31.80864235]
[1645933785932,23.8839,87.175,87.09,2.67421798]
[1645933787340,23.8839,87.175,87.091,31.83310722]
[1645933787535,23.8839,87.175,87.092,2.76179305]
[1645933787936,23.8839,87.175,87.087,2.98614549]
[1645933788535,23.8839,87.175,87.088,31.83411312]
[1645933788734,23.8839,87.175,87.089,2.8484672]
[1645933789136,23.8839,87.175,87.09,16.54]
[1645933789335,23.8839,87.175,87.091,2.94677874]
[1645933789735,23.8839,87.175,87.092,31.83411312]
[1645933789936,23.8839,87.175,87.093,2.79115772]
[1645933791336,23.8839,87.175,87.094,31.84746927]
[1645933791536,23.8839,87.175,87.096,2.48542451]
[1645933794138,23.8839,87.175,87.096,114.4]
[1645933794339,23.8839,87.175,87.097,2.96098089]
[1645933797745,26.63068921,87.175,87.097,2.96098089]
[1645933798547,30.46338949,87.175,87.097,2.96098089]
[1645933798746,47.88088949,87.175,87.097,2.96098089]
[1645933800451,44.04818921,87.175,87.097,2.96098089]
[1645933802456,26.63068921,87.175,87.097,2.96098089]
[1645933806263,20.63227516,87.174,87.097,2.96098089]
[1645933806462,42.0355881,87.174,87.097,2.96098089]
[1645933806665,16.54,87.17,87.097,2.96098089]
[1645933806862,4.59,87.169,87.047,40.68971222]
[1645933807164,1.75852589,87.168,87.049,2.77722538]
[1645933807363,4.591,87.167,87.049,2.77722538]
[1645933807561,40.15531242,87.167,87.049,2.77722538]
[1645933807761,40.15531242,87.167,87.051,2.81562202]
[1645933807762,21.40331294,87.166,87.051,2.81562202]
[1645933807961,4.591,87.165,87.051,2.81562202]
[1645933808162,42.53469948,87.165,87.053,2.98580492]
[1645933808361,35.56431242,87.164,87.053,2.98580492]
[1645933808581,16.54,87.16,87.054,31.8698997]
[1645933808783,4.591,87.159,87.055,3.0719777]
[1645933808992,42.90210163,87.159,87.055,3.0719777]
[1645933809184,14.16099948,87.158,87.055,3.0719777]
[1645933809382,4.591,87.157,87.056,31.8698997]
[1645933809582,7.33778921,87.157,87.057,2.87917255]
[1645933809782,2.74678921,87.157,87.049,31.8698997]
[1645933809984,2.74678921,87.156,87.05,2.77194579]
[1645933810186,2.74678921,87.156,87.051,114.4]
[1645933810383,2.74678921,87.156,87.052,2.96268939]
[1645933810587,24.5466,87.155,87.053,114.4]
[1645933810784,24.5466,87.155,87.055,114.4]
[1645933810984,24.5466,87.155,87.071,114.4]
[1645933811184,24.5466,87.155,87.073,114.4]
[1645933811392,24.5466,87.155,87.075,114.4]
[1645933811585,24.5466,87.155,87.077,114.4]
[1645933811783,24.5466,87.155,87.08,16.54]
[1645933811985,24.5466,87.155,87.081,7.70335214]
[1645933812183,24.5466,87.155,87.083,2.4773066]
[1645933815785,2.74678921,87.154,87.083,2.4773066]
[1645933816589,8.28678921,87.154,87.083,2.4773066]
[1645933816988,8.28678921,87.154,87.048,23.6167]
[1645933816989,2.74678921,87.153,87.048,23.6167]
[1645933817189,53.25555414,87.149,87.049,3.0976833]
[1645933817588,2.74678921,87.148,87.049,3.0976833]
[1645933817888,27.4662,87.147,87.049,3.0976833]
[1645933818188,2.74678921,87.146,87.049,3.0976833]
[1645933818388,15.60778869,87.146,87.049,3.0976833]
[1645933818890,2.74678921,87.145,87.049,3.0976833]
[1645933819190,24.8434,87.144,87.049,3.0976833]
[1645933819589,2.74678921,87.143,87.049,3.0976833]
[1645933819791,16.54,87.14,87.049,3.0976833]
[1645933820190,2.74678921,87.139,87.049,3.0976833]
[1645933820394,4.591,87.138,87.049,3.0976833]
[1645933820789,2.74678921,87.137,87.049,3.0976833]
[1645933820990,4.591,87.136,87.049,3.0976833]
[1645933821393,2.74678921,87.135,87.049,3.0976833]
[1645933821591,4.591,87.134,87.049,3.0976833]
[1645933821993,2.74678921,87.133,87.049,3.0976833]
[1645933822193,23.7258,87.132,87.049,3.0976833]
[1645933822594,2.74678921,87.131,87.049,3.0976833]
[1645933824895,20.11318921,87.131,87.049,3.0976833]
[1645933825395,2.74678921,87.13,87.049,3.0976833]
[1645933826197,17.45199948,87.129,87.041,24.5107]
[1645933826397,17.45199948,87.129,87.039,4.591]
[1645933826597,15.60778869,87.128,87.039,4.591]
[1645933826800,6.28628028,87.127,87.039,4.591]
[1645933827004,44.10428324,87.127,87.039,4.591]
[1645933827198,36.8123188,87.126,87.039,4.591]
[1645933827399,6.23865586,87.125,87.039,4.591]
[1645933827599,16.54,87.12,87.039,4.591]
[1645933827799,49.46811685,87.118,87.02,2.98474998]
[1645933828002,115.8271736,87.117,87.02,2.98474998]
[1645933828202,114.4,87.109,86.983,5.98638446]
[1645933828400,1.61775988,87.098,86.983,5.98638446]
[1645933828699,223.29,87.1,86.95,2.44960365]
[1645933828700,161.95201859,87.089,86.95,2.44960365]
[1645933828902,114.4,87.079,86.95,2.44960365]
[1645933829100,6.43590842,87.078,86.951,31.66080821]
[1645933829301,28.28151691,87.078,86.952,2.5956821]
[1645933829502,23.09876948,87.077,86.952,2.0956821]
[1645933829705,6.39928125,87.076,86.952,2.0956821]
[1645933829902,1.65939808,87.075,86.952,2.0956821]
[1645933830101,4.596,87.074,86.952,2.0956821]
[1645933830303,16.54,87.06,86.952,2.0956821]
[1645933830603,53.52879064,87.058,86.953,24.23287725]
[1645933830803,53.52879064,87.058,86.954,2.60963435]
[1645933831305,30.29530157,87.057,86.953,24.23287725]
[1645933831504,6.03589556,87.056,86.934,22.86094392]
[1645933831705,86.19814778,87.056,86.935,2.28059242]
[1645933832006,86.19814778,87.056,86.907,2.42089732]
[1645933832007,36.32137673,87.055,86.907,2.42089732]
[1645933832203,120.71554685,87.054,86.907,2.42089732]
[1645933832403,16.54,87.04,86.907,2.42089732]
[1645933832603,31.25763606,87.039,86.907,1.92089732]
[1645933832803,1.74813109,87.038,86.907,1.92089732]
[1645933833004,4.599,87.037,86.907,1.92089732]
[1645933833204,28.45631074,87.037,86.907,1.92089732]
[1645933833404,4.57367037,87.036,86.907,26.81056264]
[1645933833604,4.599,87.035,86.908,2.36554828]
[1645933833803,16.54,87.02,86.908,2.36554828]
[1645933834103,1.84183618,87.018,86.908,2.36554828]
[1645933834705,50.11528921,87.017,86.908,2.36554828]
[1645933834906,50.11528921,87.017,86.911,114.4]
[1645933835104,47.3685,87.017,86.912,2.96458052]
[1645933835303,47.3685,87.017,86.913,114.4]
[1645933835505,47.3685,87.017,86.914,2.42575169]
[1645933836003,44.08168109,87.019,86.931,115.91816505]
[1645933836205,114.4,87.087,86.931,115.91816505]
[1645933836206,2.74678921,87.045,86.932,2.97423391]
[1645933836406,2.74678921,87.045,86.934,3.00567529]
[1645933836605,2.74678921,87.071,86.951,113.4]
[1645933836806,17.4942,87.089,86.961,113.4]
[1645933837004,2.74678921,87.091,86.962,2.73436962]
[1645933837207,58.51102929,87.09,86.963,4.596]
[1645933837406,58.51102929,87.09,86.964,113.4]
[1645933837607,26.60409995,87.089,86.965,2.474561]
[1645933837807,26.60409995,87.089,86.98,16.54]
[1645933838009,28.1365167,87.088,86.981,2.86712191]
[1645933838206,1.76701607,87.087,86.981,2.86712191]
[1645933838407,50.31950163,87.087,86.981,2.86712191]
[1645933838621,1.38738832,87.086,86.981,2.86712191]
[1645933838808,1.67449385,87.085,86.981,2.86712191]
[1645933839009,25.53180459,87.085,86.981,2.86712191]
[1645933839209,1.47117723,87.084,86.981,2.86712191]
[1645933839508,28.07527718,87.084,86.981,2.86712191]
[1645933839708,26.60409995,87.083,86.981,2.86712191]
[1645933840107,2.74678921,87.082,86.981,2.86712191]
[1645933840508,26.60409995,87.082,86.981,2.86712191]
[1645933840708,23.85731074,87.081,86.981,2.86712191]
[1645933840908,26.60409995,87.081,86.981,2.86712191]
[1645933841108,2.74678921,87.08,86.981,2.86712191]
[1645933841312,4.40624031,87.08,86.981,2.86712191]
[1645933841509,4.40624031,87.08,86.964,23.567]
[1645933841510,16.54,87.07,86.965,2.98127434]
[1645933841708,6.39784167,87.069,86.965,2.98127434]
[1645933841907,4.596,87.069,86.965,2.98127434]
[1645933842108,26.60409995,87.069,86.965,2.98127434]
[1645933842333,26.60409995,87.068,86.965,2.98127434]
[1645933842732,26.60409995,87.067,86.965,2.98127434]
[1645933843133,2.74678921,87.066,86.965,2.98127434]
[1645933845235,2.74678921,87.066,86.965,114.9]
[1645933845435,2.74678921,87.066,86.971,114.9]
[1645933845636,24.6143,87.079,86.973,114.9]
[1645933845837,24.6143,87.079,86.975,114.9]
[1645933846135,24.6143,87.079,86.978,2.85461145]
[1645933846336,58.51102929,87.09,86.991,114.9]
[1645933846537,1.44827615,87.124,87.011,114.9]
[1645933846736,2.74678921,87.12,87.02,16.54]
[1645933846936,2.74678921,87.12,87.021,2.45592982]
[1645933847636,48.48088056,87.119,87.021,2.45592982]
[1645933848237,51.22766977,87.119,87.021,2.45592982]
[1645933848637,51.22766977,87.119,87.021,117.35592982]
[1645933848838,48.48088056,87.119,87.022,5.51503637]
[1645933849839,48.48088056,87.119,87.023,2.74678921]
[1645933850440,48.48088056,87.119,87.023,117.64678921]
[1645933850641,48.48088056,87.119,87.024,3.08956242]
[1645933850840,72.3381913,87.119,87.024,3.08956242]
[1645933855747,4.28542967,87.118,87.024,3.08956242]
[1645933855949,4.28542967,87.118,87.012,49.81551989]
[1645933855950,4.593,87.117,87.012,49.81551989]
[1645933856149,1.73678096,87.116,87.012,49.81551989]
[1645933856346,4.594,87.115,87.012,49.81551989]
[1645933856550,16.54,87.1,87.012,49.81551989]
[1645933856749,16.54,87.1,87.013,2.97206629]
[1645933856950,2.74678921,87.099,87.013,2.97206629]
[1645933860255,16.839,87.101,87.013,2.97206629]
[1645933860655,2.74678921,87.109,87.013,114.9]
[1645933860855,2.74678921,87.109,87.005,25.27186532]
[1645933860856,19.28678921,87.1,87.005,25.27186532]
[1645933861056,1.57287385,87.099,87.001,4.594]
[1645933861253,4.595,87.098,86.976,2.74678921]
[1645933861456,6.33119564,87.098,86.976,2.74678921]
[1645933861654,23.40394615,87.097,86.966,2.74678921]
[1645933861955,27.66327546,87.096,86.966,2.74678921]
[1645933862154,1.76440209,87.095,86.966,2.74678921]
[1645933862354,16.54,87.08,86.966,2.74678921]
[1645933862555,49.89688576,87.078,86.966,2.74678921]
[1645933862753,4.596,87.077,86.966,2.74678921]
[1645933862955,35.50311143,87.077,86.966,2.74678921]
[1645933863153,1.86335798,87.076,86.966,2.74678921]
[1645933863353,49.27702908,87.076,86.966,2.74678921]
[1645933863553,4.54664945,87.075,86.961,2.2777485]
[1645933863754,30.99833518,87.075,86.961,2.2777485]
[1645933863959,9.09088533,87.074,86.961,2.2777485]
[1645933864157,16.54,87.06,86.961,2.2777485]
[1645933864357,1.82221486,87.059,86.961,2.2777485]
[1645933864561,1.3547837,87.058,86.96,4.596]
[1645933864878,4.597,87.057,86.96,4.596]
[1645933865058,136.80641166,87.057,86.921,2.96714796]
[1645933865260,114.9,87.047,86.913,2.68049128]
[1645933865561,1.45928386,87.038,86.913,2.68049128]
[1645933865757,119.498,87.037,86.913,2.68049128]
[1645933865957,114.9,87.035,86.913,2.68049128]
[1645933866158,16.54,87.02,86.913,2.68049128]
[1645933866358,104.66083116,87.019,86.913,2.68049128]
[1645933866558,1.62084471,87.018,86.913,2.68049128]
[1645933866757,4.36763392,87.018,86.913,2.68049128]
[1645933867258,2.74678921,87.017,86.913,2.68049128]
[1645933867658,2.74678921,87.017,86.913,117.58049128]
[1645933867859,2.74678921,87.017,86.914,5.56039919]
[1645933868261,103.17457352,87.019,86.915,2.74678921]
[1645933869064,103.17457352,87.019,86.921,114.9]
[1645933869361,103.17457352,87.019,86.922,5.64561029]
[1645933869762,45.2781,87.019,86.923,2.74678921]
[1645933869964,49.12768573,87.047,86.923,2.74678921]
[1645933870162,49.12768573,87.047,86.926,2.44206895]
[1645933870362,29.19847494,87.068,86.941,114.9]
[1645933870565,47.3571,87.067,86.961,114.9]
[1645933870763,47.3571,87.067,86.96,17.245]
[1645933870764,44.72994571,87.066,86.964,2.43363769]
[1645933871362,44.72994571,87.066,86.965,2.74678921]
[1645933876300,44.72994571,87.066,86.97,17.2431]
[1645933876495,44.72994571,87.066,86.971,117.15338204]
[1645933876696,44.72994571,87.066,86.972,2.53894292]
[1645933876896,44.72994571,87.066,86.975,2.28932614]
[1645933877496,44.72994571,87.066,86.976,2.74678921]
[1645933883098,44.72994571,87.066,86.982,2.54275592]
[1645933888810,44.72994571,87.066,86.983,2.74678921]
[1645933889411,44.72994571,87.066,86.986,2.69969975]
[1645933889808,16.25061081,87.099,86.987,2.74678921]
[1645933890008,48.6227,87.093,86.992,2.52058514]
[1645933890411,48.6227,87.093,86.993,2.74678921]
[1645933891008,44.46164444,87.092,86.993,2.74678921]
[1645933894916,44.46164444,87.092,86.994,2.38565514]
[1645933895317,44.46164444,87.092,86.997,2.50563091]
[1645933895517,44.46164444,87.092,87.0,16.54]
[1645933895918,44.46164444,87.092,87.001,26.33037746]
[1645933896117,44.46164444,87.092,87.002,2.35000212]
[1645933898125,44.46164444,87.092,87.003,2.74678921]
[1645933904125,44.46164444,87.092,87.003,5.31991117]
[1645933904326,44.46164444,87.092,87.006,3.10082291]
[1645933904526,44.46164444,87.092,87.02,16.54]
[1645933904731,44.46164444,87.092,87.022,2.57393872]
[1645933905327,44.46164444,87.092,87.023,2.74678921]
[1645933905527,24.0226306,87.127,87.023,2.74678921]
[1645933905728,47.909,87.126,87.023,35.58442732]
[1645933905928,1.76447972,87.125,87.024,2.59895051]
[1645933906129,1.76447972,87.125,87.021,23.821]
[1645933906327,48.87068453,87.124,87.021,23.821]
[1645933906529,52.21283719,87.123,87.021,23.821]
[1645933906730,16.54,87.12,87.021,23.821]
[1645933907027,6.12377192,87.119,87.021,23.821]
[1645933907229,28.91834958,87.119,87.021,23.821]
[1645933907432,7.95185957,87.118,87.021,23.821]
[1645933907630,6.00633972,87.117,87.021,23.821]
[1645933907828,16.6100446,87.117,87.021,23.821]
[1645933908028,1.42351354,87.116,87.021,23.821]
[1645933908229,12.30191553,87.116,87.021,23.821]
[1645933908430,1.6052204,87.114,87.021,23.821]
[1645933908830,26.07610687,87.113,87.021,23.821]
[1645933909031,1.42565618,87.112,87.021,23.821]
[1645933909429,26.07610687,87.111,87.021,23.821]
[1645933909630,1.79494264,87.11,87.021,23.821]
[1645933910031,26.07610687,87.109,87.021,23.821]
[1645933910236,1.35260069,87.108,87.021,23.821]
[1645933910634,2.3589866,87.107,87.021,23.821]
[1645933910838,1.41089364,87.106,87.021,23.821]
[1645933911237,26.07610687,87.105,87.021,23.821]
[1645933911436,1.52581917,87.103,87.021,23.821]